Cogmind - Beta 14 @@@ ROGUE MODE // 2024.11.19 @ 15:26:44 Player: Thqwib Result: Self-destructed Performance ------------- Evolutions (0) 0 Regions Visited (4) 800 Robots Destroyed (7) 35 Value Destroyed (106) 106 Prototype IDs (0) 0 Alien Tech Used (0) 0 Bonus (0) 0 TOTAL SCORE: 941 Bonus ------- None Cogmind --------- Core Integrity 198/250 Matter 300/300 Energy 250/250 System Corruption 0% Temperature Cool (0) Movement Rolling (110) Ox2 Location -9/Mines Parts ------- > --- POWER (1) -------- Ion Engine > --- PROPULSION (2) --- Wheel > --- UTILITY (2) ------ Heat Sink Medium Storage Unit > --- WEAPON (2) ------- Medium Laser Beam Cannon > --- INVENTORY (10) --- Ion Engine Beam Cannon Peak State ------------ > --- POWER ------------ Ion Engine > --- PROPULSION ------- Wheel Wheel > --- UTILITY ---------- Heat Sink Small Storage Unit > --- WEAPON ----------- Medium Laser Beam Cannon > --- INVENTORY -------- Ion Engine Beam Cannon [Rating: 7] Favorites ----------- Power Ion Engine Engine Ion Engine Propulsion Wheel Leg Aluminum Leg Wheel Wheel Utility Heat Sink Device Heat Sink Storage Medium Storage Unit Weapon Medium Laser Energy Gun Medium Laser Energy Cannon Beam Cannon Build | -11 -10 -10 -10 -9 ------- Run | Yrd Mat Min Exi Min Slots Evolved . | . . . . . Power . | . . . . . Propulsion . | . . . . . Utility . | . . . . . Weapon . | . . . . . Parts Attached 5 | . 5 . . . Power . | . . . . . Engine . | . . . . . Core . | . . . . . Reactor . | . . . . . Propulsion 2 | . 2 . . . Treads . | . . . . . Leg . | . . . . . Wheel 2 | . 2 . . . Hover . | . . . . . Flight . | . . . . . Utility 2 | . 2 . . . Device 1 | . 1 . . . Storage 1 | . 1 . . . Processor . | . . . . . Hackware . | . . . . . Protection . | . . . . . Artifact . | . . . . . Weapon 1 | . 1 . . . Energy Gun . | . . . . . Energy Cannon 1 | . 1 . . . Ballistic Gun . | . . . . . Ballistic Cannon . | . . . . . Launcher . | . . . . . Special Weapon . | . . . . . Impact Weapon . | . . . . . Slashing Weapon . | . . . . . Piercing Weapon . | . . . . . Special Melee Weapon . | . . . . . Unidentified Prototypes . | . . . . . Parts Lost . | . . . . . Power . | . . . . . Propulsion . | . . . . . Utility . | . . . . . Weapon . | . . . . . Highest Loss Streak . | . . . . . To Critical Strikes . | . . . . . Average Slot Usage (%) 85 | . 86 85 85 . Engine 14 | . 14 14 14 . Wheel 15 | . 19 14 14 . Device 12 | . 7 14 14 . Storage 14 | . 14 14 14 . Energy Gun 14 | . 16 14 14 . Energy Cannon 13 | . 11 14 14 . Peak Build Rating 7 | 6 7 6 6 . Average Rating 6 | 6 6 6 6 . On Entrance 6 | 6 6 6 6 6 Naked Turns . | . . . . . Heaviest Build 21 | 13 21 21 21 . Greatest Support 20 | 20 20 10 10 . Greatest Overweight (x) 2 | . 2 2 2 . Average Overweight (x) 1 | . . 2 2 . Largest Inventory Capacity 10 | 8 10 10 10 . Average Capacity 9 | 8 8 10 10 . Most Carried 6 | 6 6 2 2 . Average Carried 2 | 6 2 2 2 . Final Capacity 10 | 8 10 10 10 10 Final Carried 6 | 6 2 2 2 2 Class Distribution -------------------- 100% | Mutant Dominant Class ---------------- Mutant | -10/Materials Mutant | -10/Mines Mutant | -10/Exiles Mutant | -9/Mines Resources | -11 -10 -10 -10 -9 ----------- Run | Yrd Mat Min Exi Min Matter Collected 250 | 200 47 3 . . Remotely . | . . . . . Salvage Created 237 | . 117 120 . . Parts 10 | . 4 6 . . Haulers Intercepted 1 | . 1 . . . Recyclers Shooed . | . . . . . Parts Field Recycled . | . . . . . Retrieved Matter . | . . . . . Parts Self-Destructed . | . . . . . Prevented . | . . . . . Kills | -11 -10 -10 -10 -9 ------- Run | Yrd Mat Min Exi Min Combat Hostiles Destroyed 5 | . 2 3 . . Guns 3 | . 1 2 . . Cannons 2 | . 1 1 . . Classes Destroyed 4 | . 2 2 . . Hauler 1 | . 1 . . . Recycler 1 | . . 1 . . Swarmer 3 | . . 3 . . Grunt 2 | . 2 . . . Best Kill Streak 4 | . 3 4 . . Combat Bots Only 2 | . 2 2 . . Max Kills in Single Turn 1 | . 1 1 . . Gunslinging . | . . . . . Exploded . | . . . . . Melee . | . . . . . Uniques/NPCs Destroyed . | . . . . . Combat | -11 -10 -10 -10 -9 -------- Run | Yrd Mat Min Exi Min Hostile Shots Fired 18 | . 11 7 . . Missed 3 | . 2 1 . . Damage Taken 148 | . 103 45 . . Core 52 | . 45 7 . . Absorbed by Shields . | . . . . . Core Remaining (%) 100 | 100 . . . . Volleys Fired 19 | . 13 6 . . Largest 2 | . 2 2 . . Hottest 110 | . 110 110 . . Shots Fired 38 | . 26 12 . . Gun 19 | . 13 6 . . Cannon 19 | . 13 6 . . Launcher . | . . . . . Special . | . . . . . Kinetic . | . . . . . Thermal 38 | . 26 12 . . Explosive . | . . . . . Electromagnetic . | . . . . . Robot Hit Streak 5 | . 4 5 . . Robot Miss Streak 1 | . 1 1 . . Penetration Max . | . . . . . Secondary Targets . | . . . . . Shots Hit Robots 24 | . 17 7 . . Core Hits 11 | . 6 5 . . Critical Kills . | . . . . . Critical Parts Destroyed . | . . . . . Critical Strikes . | . . . . . Melee Attacks . | . . . . . Impact . | . . . . . Slashing . | . . . . . Piercing . | . . . . . Sneak Attacks . | . . . . . Combat Hostiles . | . . . . . Follow-up Attacks . | . . . . . Damage Inflicted 370 | . 263 107 . . Guns 161 | . 124 37 . . Cannons 209 | . 139 70 . . Explosions . | . . . . . Melee . | . . . . . Ramming . | . . . . . Kinetic . | . . . . . Thermal 370 | . 263 107 . . Explosive . | . . . . . Electromagnetic . | . . . . . Impact . | . . . . . Slashing . | . . . . . Piercing . | . . . . . Highest Corruption . | . . . . . Average Corruption . | . . . . . Corruption Purged . | . . . . . Corruption Blocked . | . . . . . Overload Shots . | . . . . . Overflow Damage . | . . . . . Projectiles . | . . . . . Explosions . | . . . . . Melee . | . . . . . Knockbacks . | . . . . . Impact . | . . . . . Kinetic . | . . . . . Secondary . | . . . . . Self-Inflicted Damage . | . . . . . Shots . | . . . . . Rammed . | . . . . . Targets Rammed . | . . . . . Kicked . | . . . . . Crushed . | . . . . . Highest Temperature 382 | . 382 72 . . Average Temperature 165 | . 216 29 . . Received Heat Transfer 54 | . 54 . . . Effects 4 | . 4 . . . Shutdowns 2 | . 2 . . . Short Circuit 1 | . 1 . . . Damage (minor) 1 | . 1 . . . Siege Activations . | . . . . . Robots Corrupted . | . . . . . Combat Hostiles . | . . . . . Parts Fried . | . . . . . Impact Corruptions . | . . . . . Robots Melted . | . . . . . Combat Hostiles . | . . . . . Parts Melted 2 | . 2 . . . Heat Transferred 925 | . 666 259 . . Parts Sabotaged . | . . . . . Parts Stolen . | . . . . . Parts Stripped . | . . . . . Power Chain Reactions . | . . . . . Alert | -11 -10 -10 -10 -9 ------- Run | Yrd Mat Min Exi Min Peak Influence 129 | . 62 129 . . Initial 24 | . . 24 . . Average 59 | . 32 79 . . Maximum Alert Level . | . . . . . Low Security (%) 100 | 100 100 100 . . Level 1 . | . . . . . Level 2 . | . . . . . Level 3 . | . . . . . Level 4 . | . . . . . Level 5 . | . . . . . High Security . | . . . . . Max Security . | . . . . . Squads Dispatched . | . . . . . Investigation . | . . . . . Extermination . | . . . . . Reinforcement . | . . . . . Assault . | . . . . . Garrison . | . . . . . Intercept . | . . . . . Searches Triggered . | . . . . . Construction Impeded . | . . . . . Haulers Reinforced . | . . . . . Active Scanning Responses . | . . . . . Cargo Convoy Interrupts . | . . . . . Stealth | -11 -10 -10 -10 -9 --------- Run | Yrd Mat Min Exi Min Distress Signals . | . . . . . Communications Jammed . | . . . . . Distress Signals . | . . . . . Times Spotted 10 | . 5 5 . . Peak Tracking Total 3 | . 3 3 . . Tactical Retreats 1 | . . 1 . . Traps | -11 -10 -10 -10 -9 ------- Run | Yrd Mat Min Exi Min Traps Triggered . | . . . . . Indirectly . | . . . . . Trap Hack Attempts . | . . . . . Triggered . | . . . . . Disarmed . | . . . . . Reprogrammed . | . . . . . Reused . | . . . . . Traps Extracted . | . . . . . Installed . | . . . . . Triggered . | . . . . . Machines | -11 -10 -10 -10 -9 ---------- Run | Yrd Mat Min Exi Min Machines Disabled . | . . . . . Max in Single Turn . | . . . . . Machines Repaired . | . . . . . Machines Dismantled . | . . . . . Machines Sabotaged . | . . . . . Overloaded Fab Kills . | . . . . . Hacking | -11 -10 -10 -10 -9 --------- Run | Yrd Mat Min Exi Min Machines Accessed 2 | . 1 . 1 . Terminals 1 | . 1 . . . Fabricators . | . . . . . Repair Stations . | . . . . . Recycling Units . | . . . . . Scanalyzers . | . . . . . Garrison Access . | . . . . . Total Hacks 5 | . 4 . 1 . Successful 2 | . 1 . 1 . Failed 3 | . 3 . . . Catastrophic . | . . . . . Database Lockouts . | . . . . . Manual 4 | . 4 . . . Terminals 4 | . 4 . . . Fabricators . | . . . . . Repair Stations . | . . . . . Recycling Units . | . . . . . Scanalyzers . | . . . . . Garrison Access . | . . . . . Terminal Hacks 1 | . . . 1 . Record 1 | . . . 1 . Fabricator Hacks . | . . . . . Repair Station Hacks . | . . . . . Recycling Unit Hacks . | . . . . . Scanalyzer . | . . . . . Garrison Access Hacks . | . . . . . Unauthorized Hacks 1 | . 1 . . . Terminals 1 | . 1 . . . Botnet 1 | . 1 . . . Fabricators . | . . . . . Repair Stations . | . . . . . Recycling Units . | . . . . . Scanalyzers . | . . . . . Garrison Access . | . . . . . Data Cores Recovered . | . . . . . Used . | . . . . . Hacking Detections 1 | . 1 . . . Full Trace Events . | . . . . . Feedback Events . | . . . . . Feedback Blocked . | . . . . . Robot Schematics Acquired . | . . . . . Robots Built . | . . . . . Authchips . | . . . . . Time . | . . . . . Total Robot Build Rating . | . . . . . Part Schematics Acquired . | . . . . . Parts Built . | . . . . . Authchips . | . . . . . Time . | . . . . . Total Part Build Rating . | . . . . . Parts Repaired . | . . . . . Time . | . . . . . Parts Recycled . | . . . . . Recycled Matter . | . . . . . Retrieved Matter . | . . . . . Retrieved Components . | . . . . . Parts Scanalyzed . | . . . . . Part Schematics Acquired . | . . . . . Parts Damaged . | . . . . . Bothacking | -11 -10 -10 -10 -9 ------------ Run | Yrd Mat Min Exi Min Used RIF Installer . | . . . . . Robots Hacked . | . . . . . Non-combat . | . . . . . Combat . | . . . . . Robot Hacks Applied . | . . . . . Relay Couplers Released . | . . . . . Fabnet Peak Effective % . | . . . . . Robots Rewired . | . . . . . Allies Hacked . | . . . . . Hacks Repelled . | . . . . . Allies | -11 -10 -10 -10 -9 -------- Run | Yrd Mat Min Exi Min Total Allies . | . . . . . Largest Group . | . . . . . Highest-Rated Group . | . . . . . Highest-Rated Ally . | . . . . . Total Orders . | . . . . . Ally Attacks . | . . . . . Total Damage . | . . . . . Kills . | . . . . . Allies Corrupted . | . . . . . Allies Melted . | . . . . . Intel | -11 -10 -10 -10 -9 ------- Run | Yrd Mat Min Exi Min Robot Analysis Total . | . . . . . Derelict Logs Recovered . | . . . . . Drone Launches . | . . . . . Drone Recoveries . | . . . . . Exploration | -11 -10 -10 -10 -9 ------------- Run | Yrd Mat Min Exi Min Turns Passed 611 | 3 127 188 293 . Spaces Moved 493 | 3 80 143 267 . Core . | . . . . . Treads . | . . . . . Legs 11 | 3 8 . . . Wheels 482 | . 72 143 267 . Hover . | . . . . . Flight . | . . . . . Fastest Speed 80 | 120 80 110 110 . Average Speed 107 | 120 96 110 110 . Slowest Speed 120 | 120 120 110 110 . Overloaded Moves . | . . . . . Propulsion Burnouts . | . . . . . Robots Hopped . | . . . . . Cave-ins Triggered . | . . . . . Exploration Rate (%) 26 | 1 28 37 62 4 Regions Visited 4 Branch Regions 3 Pre-discovered Areas . | . . . . . Known Exits Taken . | . . . . . Unknown Exits Taken 4 | 1 1 1 1 . Scrap Searched . | . . . . . Spaces Dug . | . . . . . Terrain Destroyed . | . . . . . Melee . | . . . . . Projectile . | . . . . . AOE . | . . . . . Terrain Rammed . | . . . . . Walls Destroyed . | . . . . . Machines Disabled . | . . . . . Actions | -11 -10 -10 -10 -9 --------- Run | Yrd Mat Min Exi Min Total 535 | 2 106 161 266 . Wait 13 | . . 13 . . Move 489 | 2 79 142 266 . Hop . | . . . . . Pick Up 1 | . 1 . . . Fast Attach 2 | . 2 . . . Attach 2 | . 2 . . . Detach . | . . . . . Swap 1 | . 1 . . . Drop 8 | . 8 . . . Fire 19 | . 13 6 . . Melee . | . . . . . Ram . | . . . . . Kick . | . . . . . Crush . | . . . . . Escape Stasis . | . . . . . Rewire . | . . . . . Trap . | . . . . . Miscellaneous . | . . . . . Route ------- -11/Scrapyard -10/Materials -10/Mines -10/Exiles -9/Mines History --------- Turn | Location | Event 1 | -11/Scrapyard | Discovered new exit (range 3) 4 | -11/Scrapyard | Entered Materials 95 | -10/Materials | Discovered new exit (range 16) 131 | -10/Materials | Entered Mines 314 | -10/Mines | Deemed a non-threat by the Exiles lab entrance 314 | -10/Mines | Discovered new exit (range 5) 318 | -10/Mines | Build established: Mutant 319 | -10/Mines | Entered Exiles 319 | -10/Exiles | Found Exiles lab abandoned 601 | -10/Exiles | Discovered new exit (range 11) 612 | -10/Exiles | Entered Mines 612 | -9/Mines | Self-destructed Last Messages --------------- 00232_ R-06 Scavenger destroyed. 00242_ S-10 Pest destroyed. 00268_ A derelict is hurriedly installing traps. 00269_ T-07 Excavator is excavating. 00270_ OV-XU0(g): "Hehe, this'll put a wrench in their mining defense operations..." 00270_ OV-XU0(g) slips into the shadows. 00292_ R-06 Scavenger collects Lgt. Assault Rifle. 00297_ R-06 Scavenger collects Lgt. Ion Engine. 00314_ "No threat detected, you may enter." 00314_ EXIT=FOUND LOCATION=UNKNOWN GOAL=ESCAPE 00542_ Connecting with BIN's Terminal... 00542_ Current location identified: Exiles >>Record "BIN-BYE" To the spacelab! 00601_ EXIT=FOUND LOCATION=UNKNOWN GOAL=ESCAPE Map ----- +----------------------------------------------------+ | ?????????????????????????????????? | | ?????????????????????????????????? | | ?????????????????????????????????? | | ?????????????????????????????????? | | ?????????????????????????????????? | | ?????????????????????????????????? | | ?????????????????????????????????? | | ?????????????????????????????????? | | ?????????????????????????????????? | | ?????????????????????????????????? | | ??????????????????????????? ?????? | | ??????????????????????????# #????? | | ?????????????????????????? #????? | | ?????????????????????????? #????? | | ?????????????????????????? #????? | | ?????????????????????????? #????? | | ?????????????????????????# ##???? | | ???????????????????????##s #???? | | ??????????????????????## s #???? | | ?????????????????????## #???? | | ?????????????????????# s ????? | | ?????????????????????? #????? | | ??????????????????????# s ?????? | | ??????????????????????# #?????? | | ??????????????????????# #?????? | | ???????????????????????# @ #?????? | | ???????????????????????# #?????? | | ???????????????????????# ##?????? | | ???????????????????????# #??????? | | ??????????????????????? ??????? | | ??????????????????????? ??????? | | ?????????????????????? ??????? | | ??????????????????????### ??????? | | ????????????????????????###??????? | | ?????????????????????????????????? | | ?????????????????????????????????? | | ?????????????????????????????????? | | ?????????????????????????????????? | | ?????????????????????????????????? | | ?????????????????????????????????? | | ?????????????????????????????????? | | ?????????????????????????????????? | | ?????????????????????????????????? | | ?????????????????????????????????? | | ?????????????????????????????????? | | ?????????????????????????????????? | | ?????????????????????????????????? | | ?????????????????????????????????? | | ?????????????????????????????????? | | ?????????????????????????????????? | +----------------------------------------------------+ Best States ------------- Heat Dissipation 35 Energy Generation 10 Energy Capacity 250 Matter Stores 300 Matter Capacity 300 Sight Range 16 Terrain Scan Density 10 Evasion (%) 45 Item Schematics ----------------- None Robot Schematics ------------------ None Fabricated ------------ Nothing Alien Tech Used ----------------- None Achievements -------------- None Challenges ------------ None Game ------ Seed OpticalPrecisionWeb Manual? 0 Play Time 00:04:51 Cumulative 80.4 hours Start 2024.11.19 @ 15:19:48 End 2024.11.19 @ 15:26:44 Sessions 1 Manual Loads 0 Difficulty Rogue Special Mode None Game No. 59 Rogue 59 Adventurer 0 Explorer 0 Win Type - Total 1 Types 1/0/0/0/0/0/0/0/0 Lore% 26 Gallery% 51 Achievement% 42 Wizard Run 0 Options --------- Layout 0 ASCII 0 Keyboard 0 Movement Arrows Keybinds 0 Fullscreen 2 Font 18/X11 Map View 76x50 Zoom Use 0% Tactical HUD 1 Map Filters NONE Filters NONE Steam 0 RUN: e11568c8-4a80-45bf-8792-dab666558fc5